fUST/lending_fUST_20241227
["ID","MTS","AMOUNT","RATE_DAILY","PERIOD"]
[346712007,1735229376439,-500.0,0.00016999,2]
[346712008,1735229376462,-500.0,0.00016999,2]
[346712009,1735229376485,-503.79339194,0.00016999,2]
[346712010,1735229376508,-157.1069165,0.00016999,2]
[346712011,1735229376531,-136.5214846,0.00016999,2]
[346712012,1735229377062,-300.49477929,0.00016999,2]
[346712013,1735229399375,-498.119133,0.00016073,2]
[346712014,1735229399402,-204.98,0.00016995,2]
[346712015,1735229399430,-569.47557697,0.00016995,2]
[346712016,1735229399461,-319.795753,0.00016995,2]
[346712048,1735229432161,-666.0,0.00016898,2]
[346712049,1735229432171,-401.51,0.00016994,2]
[346712050,1735229432180,-391.40867003,0.00016995,2]
[346712051,1735229432190,-1008.97,0.00016995,2]
[346712052,1735229432199,-445.02,0.00016995,2]
[346712053,1735229432211,-759.06,0.00016995,2]
[346712054,1735229432220,-500.0,0.00016995,2]
[346712055,1735229432229,-500.0,0.00016995,2]
[346712056,1735229432239,-655.17,0.00016995,2]
[346712057,1735229432249,-603.87619254,0.00016996,2]
[346712058,1735229432261,-330.32380746,0.00016996,2]
[346712059,1735229432271,-500.0,0.00016996,2]
[346712061,1735229432280,-169.38286174,0.00016996,2]
[346712063,1735229432291,-330.61713826,0.00016996,2]
[346712064,1735229432301,-300.0,0.00016996,2]
[346712065,1735229432310,-300.0,0.00016996,2]
[346712066,1735229432319,-500.0,0.00016996,2]
[346712068,1735229432328,-501.69171274,0.00016996,2]
[346712069,1735229432337,-453.44237889,0.00016996,2]
[346712070,1735229432347,-719.86,0.00016996,2]
[346712071,1735229432357,-502.39980787,0.00016996,2]
[346712072,1735229432366,-500.0,0.00016996,2]
[346712073,1735229432375,-500.0,0.00016996,2]
[346712074,1735229432384,-635.33,0.00016996,2]
[346712075,1735229432394,-500.0,0.00016996,2]
[346712076,1735229432403,-500.0,0.00016996,2]
[346712077,1735229432412,-500.0,0.00016996,2]
[346712078,1735229432422,-500.0,0.00016997,2]
[346712079,1735229432432,-500.0,0.00016997,2]
[346712080,1735229432441,-500.0,0.00016997,2]
[346712081,1735229432451,-500.0,0.00016997,2]
[346712082,1735229432463,-500.0,0.00016997,2]
[346712083,1735229432473,-501.27073296,0.00016998,2]
[346712084,1735229432482,-17.57822928,0.00016998,2]
[346712085,1735229432498,-482.42177072,0.00016998,2]
[346712086,1735229432507,-500.0,0.00016998,2]
[346712087,1735229432516,-500.0,0.00016998,2]
[346712088,1735229432526,-544.39957136,0.00016998,2]
[346712089,1735229432536,-500.0,0.00016998,2]
[346712090,1735229432545,-500.0,0.00016998,2]
[346712091,1735229432554,-503.68711025,0.00016998,2]
[346712092,1735229432563,-64.80527256,0.00016999,2]
[346712093,1735229432572,-501.68867523,0.00016999,2]
[346712094,1735229432581,-500.0,0.00016999,2]
[346712095,1735229432590,-500.0,0.00016999,2]
[346712096,1735229432599,-500.0,0.00016999,2]
[346712097,1735229432609,-500.0,0.00016999,2]
[346712098,1735229432618,-500.0,0.00016999,2]
[346712099,1735229432627,-500.0,0.00016999,2]
[346712100,1735229432636,-500.0,0.00016999,2]
[346712101,1735229432645,-3355.48,0.00016999,2]
[346712102,1735229432655,-500.0,0.00016999,2]
[346712103,1735229432664,-500.0,0.00016999,2]
[346712104,1735229432673,-500.0,0.00016999,2]
[346712105,1735229432683,-500.0,0.00016999,2]
[346712106,1735229432692,-500.0,0.00016999,2]
[346712107,1735229432703,-500.0,0.00016999,2]
[346712108,1735229432711,-500.0,0.00016999,2]
[346712109,1735229432721,-500.0,0.00016999,2]
[346712110,1735229432733,-500.0,0.00016999,2]
[346712111,1735229432743,-500.0,0.00016999,2]
[346712112,1735229432752,-1507.94943075,0.00017,2]
[346712113,1735229432761,-605.603,0.000171,2]
[346712114,1735229432771,-500.0,0.00017269,2]
[346712115,1735229432780,-500.0,0.00017269,2]
[346712116,1735229432789,-500.0,0.00017269,2]
[346712117,1735229432799,-500.0,0.00017269,2]
[346712118,1735229432810,-5687.39,0.00017269,2]
[346712119,1735229432819,-500.0,0.00017269,2]
[346712120,1735229432829,-2099.57,0.00017269,2]
[346712121,1735229432838,-500.0,0.00017269,2]
[346712122,1735229432847,-500.0,0.00017269,2]
[346712123,1735229432857,-1280.68,0.00017269,2]
[346712124,1735229432866,-1008.97,0.00017269,2]
[346712125,1735229432875,-759.06,0.00017269,2]
[346712126,1735229432885,-407.56,0.00017269,2]
[346712127,1735229432895,-500.0,0.00017269,2]
[346712128,1735229432904,-655.17,0.00017269,2]
[346712129,1735229432913,-498.32801298,0.0001727,2]
[346712130,1735229432922,-500.0,0.0001727,2]
[346712131,1735229432931,-500.0,0.0001727,2]
[346712132,1735229432940,-500.0,0.0001727,2]
[346712133,1735229432949,-212.6,0.0001727,2]
[346712134,1735229432959,-345.53300026,0.0001727,2]
[346712135,1735229432969,-503.24476705,0.0001727,2]
[346712136,1735229432979,-500.0,0.0001727,2]
[346712137,1735229432990,-500.0,0.0001727,2]
[346712138,1735229433000,-506.5550353,0.0001727,2]
[346712139,1735229433009,-500.0,0.0001727,2]
[346712140,1735229433018,-500.0,0.0001727,2]
[346712141,1735229433028,-500.0,0.0001727,2]
[346712142,1735229433037,-500.0,0.0001727,2]
[346712143,1735229433046,-500.0,0.0001727,2]
[346712144,1735229433150,-211.09,0.0001727,2]
[346712145,1735229433160,-500.0,0.0001727,2]
[346712146,1735229433170,-500.0,0.0001727,2]
[346712147,1735229433180,-500.0,0.0001727,2]
[346712148,1735229433189,-500.0,0.0001727,2]
[346712149,1735229433199,-500.0,0.0001727,2]
[346712150,1735229433210,-500.0,0.0001727,2]
[346712151,1735229433219,-500.0,0.0001727,2]
[346712152,1735229433228,-500.0,0.0001727,2]
[346712153,1735229433238,-500.0,0.0001727,2]
[346712154,1735229433248,-500.0,0.0001727,2]
[346712155,1735229433258,-500.0,0.0001727,2]
[346712156,1735229433267,-1040.55,0.0001727,2]
[346712157,1735229433277,-500.0,0.0001727,2]
[346712158,1735229433286,-500.0,0.0001727,2]
[346712159,1735229433295,-1100.36,0.0001727,2]
[346712160,1735229433305,-1279.75,0.0001727,2]
[346712161,1735229433315,-500.0,0.0001727,2]
[346712162,1735229433324,-500.0,0.0001727,2]
[346712163,1735229433333,-500.0,0.0001727,2]
[346712164,1735229433343,-546.40849969,0.0001727,2]
[346712165,1735229433353,-501.76117965,0.0001727,2]
[346712166,1735229433361,-500.0,0.0001727,2]
[346712167,1735229433371,-500.0,0.0001727,2]
[346712168,1735229433379,-551.97,0.0001727,2]
[346712169,1735229433389,-507.48052875,0.0001727,2]
[346712170,1735229433398,-500.0,0.0001727,2]
[346712171,1735229433408,-500.0,0.0001727,2]
[346712172,1735229433418,-1785.19,0.0001727,2]
[346712173,1735229433427,-652.16,0.0001727,2]
[346712174,1735229433437,-500.0,0.0001727,2]
[346712175,1735229433447,-437.62780202,0.0001727,2]
[346712176,1735229433459,-500.0,0.0001727,2]
[346712177,1735229433468,-655.75,0.0001727,2]
[346712178,1735229433478,-500.0,0.0001727,2]
[346712179,1735229433487,-500.0,0.0001727,2]
[346712180,1735229433497,-500.0,0.0001727,2]
[346712181,1735229433507,-510.11,0.0001727,2]
[346712182,1735229433516,-500.0,0.0001727,2]
[346712183,1735229433526,-501.35968707,0.0001727,2]
[346712184,1735229433535,-500.0,0.0001727,2]
[346712185,1735229433545,-378.51,0.0001727,2]
[346712186,1735229433555,-500.0,0.0001727,2]
[346712187,1735229433564,-500.0,0.0001727,2]
[346712188,1735229433574,-500.0,0.0001727,2]
[346712189,1735229433583,-934.2,0.0001727,2]
[346712190,1735229433592,-719.86,0.0001727,2]
[346712191,1735229433602,-500.0,0.0001727,2]
[346712192,1735229433612,-635.33,0.0001727,2]
[346712193,1735229433621,-500.0,0.0001727,2]
[346712194,1735229433631,-501.62090142,0.0001727,2]
[346712195,1735229433641,-500.0,0.0001727,2]
[346712196,1735229433651,-500.0,0.00017271,2]
[346712197,1735229433660,-234.96534465,0.00017271,2]
[346712198,1735229433671,-500.0,0.00017271,2]
[346712199,1735229433680,-500.0,0.00017271,2]
[346712200,1735229433690,-500.0,0.00017271,2]
[346712201,1735229433699,-641.18,0.00017271,2]
[346712202,1735229433719,-500.0,0.00017271,2]
[346712203,1735229433730,-556.66,0.00017271,2]
[346712204,1735229433739,-500.0,0.00017271,2]
[346712205,1735229433749,-500.0,0.00017271,2]
[346712206,1735229433758,-500.0,0.00017271,2]
[346712207,1735229433769,-541.36,0.00017271,2]
[346712208,1735229433780,-500.0,0.00017271,2]
[346712209,1735229433789,-500.0,0.00017271,2]
[346712210,1735229433798,-500.0,0.00017271,2]
[346712211,1735229433810,-500.0,0.00017271,2]
[346712212,1735229433819,-500.0,0.00017271,2]
[346712213,1735229433828,-558.46469678,0.00017271,2]
[346712214,1735229433837,-568.59,0.00017271,2]
[346712215,1735229433847,-500.0,0.00017271,2]
[346712216,1735229433856,-500.0,0.00017271,2]
[346712217,1735229433865,-500.0,0.00017271,2]
[346712218,1735229433874,-500.0,0.00017271,2]
[346712219,1735229433884,-500.0,0.00017271,2]
[346712220,1735229433893,-500.0,0.00017271,2]
[346712221,1735229433903,-500.0,0.00017271,2]
[346712222,1735229433912,-500.0,0.00017271,2]
[346712223,1735229433921,-588.46,0.00017271,2]
[346712224,1735229433930,-500.0,0.00017271,2]
[346712225,1735229433939,-500.0,0.00017271,2]
[346712226,1735229433948,-18235.21,0.00017271,2]
[346712227,1735229433960,-521.57921138,0.00017271,2]
[346712228,1735229433969,-500.0,0.00017271,2]
[346712229,1735229433979,-500.0,0.00017271,2]
[346712230,1735229433989,-500.0,0.00017271,2]
[346712231,1735229433998,-500.0,0.00017272,2]
[346712232,1735229434008,-500.0,0.00017272,2]
[346712233,1735229434017,-500.0,0.00017272,2]
[346712234,1735229434026,-500.0,0.00017272,2]
[346712235,1735229434034,-500.0,0.00017272,2]
[346712236,1735229434044,-500.0,0.00017272,2]
[346712237,1735229434053,-285.53807834,0.00017272,2]
[346712238,1735229434062,-500.0,0.00017272,2]
[346712239,1735229434071,-500.0,0.00017272,2]
[346712240,1735229434080,-500.0,0.00017272,2]
[346712241,1735229434089,-603.7,0.00017272,2]
[346712242,1735229434098,-500.0,0.00017272,2]
[346712243,1735229434107,-649.06,0.00017272,2]
[346712244,1735229434116,-500.0,0.00017272,2]
[346712245,1735229434126,-500.0,0.00017272,2]
[346712246,1735229434135,-500.0,0.00017272,2]
[346712247,1735229434144,-502.76891911,0.00017272,2]
[346712248,1735229434153,-500.0,0.00017272,2]
[346712249,1735229434163,-500.0,0.00017272,2]
[346712250,1735229434172,-562.76658056,0.00017272,2]
[346712251,1735229434181,-500.0,0.00017272,2]
[346712252,1735229434190,-500.0,0.00017272,2]
[346712253,1735229434200,-500.0,0.00017272,2]
[346712254,1735229434213,-512.7715181,0.00017272,2]
[346712255,1735229434223,-500.0,0.00017272,2]
[346712256,1735229434234,-500.0,0.00017272,2]
[346712257,1735229434243,-500.0,0.00017272,2]
[346712258,1735229434253,-500.0,0.00017272,2]
[346712259,1735229434262,-500.0,0.00017272,2]
[346712260,1735229434272,-500.0,0.00017272,2]
[346712261,1735229434282,-501.72802782,0.00017273,2]
[346712262,1735229434291,-500.0,0.00017273,2]
[346712263,1735229434301,-428.35624068,0.00017273,2]
[346712264,1735229434310,-437.25789313,0.00017273,2]
[346712265,1735229434320,-500.0,0.00017273,2]
[346712266,1735229434329,-500.0,0.00017273,2]
[346712267,1735229434338,-3355.48,0.00017273,2]
[346712268,1735229434348,-500.0,0.00017273,2]
[346712269,1735229434357,-500.0,0.00017273,2]
[346712270,1735229434367,-500.0,0.00017273,2]
[346712271,1735229434376,-500.0,0.00017273,2]
[346712272,1735229434386,-500.0,0.00017273,2]
[346712273,1735229434395,-500.0,0.00017273,2]
[346712274,1735229434405,-500.0,0.00017273,2]
[346712275,1735229434414,-500.0,0.00017273,2]
[346712276,1735229434423,-500.0,0.00017273,2]
[346712277,1735229434433,-500.0,0.00017408,2]
[346712278,1735229434442,-500.0,0.00017543,2]
[346712279,1735229434452,-500.0,0.00017543,2]
[346712280,1735229434463,-638.95,0.00017543,2]
[346712281,1735229434472,-5687.39,0.00017543,2]
[346712282,1735229434481,-2099.57,0.00017543,2]
[346712283,1735229434491,-500.0,0.00017543,2]
[346712284,1735229434501,-226.41,0.00017543,2]
[346712285,1735229434510,-1280.68,0.00017543,2]
[346712286,1735229434520,-1008.97,0.00017543,2]
[346712287,1735229434530,-759.06,0.00017543,2]
[346712288,1735229434539,-500.0,0.00017543,2]
[346712289,1735229434548,-500.0,0.00017544,2]
[346712290,1735229434558,-500.0,0.00017544,2]
[346712291,1735229434568,-500.0,0.00017544,2]
[346712292,1735229434578,-500.0,0.00017544,2]
[346712293,1735229434588,-500.0,0.00017544,2]
[346712294,1735229434598,-155.05,0.00017544,2]
[346712295,1735229434607,-500.0,0.00017544,2]
[346712296,1735229434617,-500.0,0.00017544,2]
[346712297,1735229434627,-500.0,0.00017544,2]
[346712298,1735229434637,-500.0,0.00017544,2]
[346712299,1735229434647,-156.94,0.00017544,2]
[346712300,1735229434657,-1040.55,0.00017544,2]
[346712301,1735229434666,-1100.36,0.00017544,2]
[346712302,1735229434676,-1279.75,0.00017544,2]
[346712303,1735229434686,-500.0,0.00017544,2]
[346712304,1735229434696,-500.0,0.00017544,2]
[346712305,1735229434778,-500.0,0.00017544,2]
[346712306,1735229434798,-500.0,0.00017544,2]
[346712307,1735229434808,-652.16,0.00017544,2]
[346712308,1735229434818,-1785.19,0.00017544,2]
[346712309,1735229434828,-500.0,0.00017544,2]
[346712310,1735229434837,-655.75,0.00017544,2]
[346712311,1735229434847,-500.0,0.00017544,2]
[346712312,1735229434857,-510.11,0.00017544,2]
[346712313,1735229434866,-453.02312013,0.00017544,2]
[346712314,1735229434875,-500.0,0.00017544,2]
[346712315,1735229434885,-934.2,0.00017544,2]
[346712316,1735229434894,-719.86,0.00017544,2]
[346712317,1735229434904,-500.0,0.00017544,2]
[346712318,1735229434913,-635.33,0.00017544,2]
[346712319,1735229434922,-500.0,0.00017544,2]
[346712320,1735229434932,-500.0,0.00017545,2]
[346712321,1735229434941,-500.0,0.00017545,2]
[346712322,1735229434950,-500.0,0.00017545,2]
[346712323,1735229434961,-556.66,0.00017545,2]
[346712324,1735229434970,-500.0,0.00017545,2]
[346712325,1735229434980,-173.66,0.00017545,2]
[346712326,1735229434990,-541.36,0.00017545,2]
[346712327,1735229434999,-500.0,0.00017545,2]
[346712328,1735229435009,-525.49,0.00017545,2]
[346712329,1735229435018,-500.0,0.00017545,2]
[346712330,1735229435028,-568.59,0.00017545,2]
[346712331,1735229435037,-500.0,0.00017545,2]
[346712332,1735229435046,-204.67,0.00017545,2]
[346712333,1735229435055,-500.0,0.00017545,2]
[346712334,1735229435066,-500.0,0.00017545,2]
[346712335,1735229435075,-500.0,0.00017545,2]
[346712336,1735229435085,-500.0,0.00017545,2]
[346712337,1735229435095,-588.46,0.00017545,2]
[346712338,1735229435105,-500.0,0.00017545,2]
[346712339,1735229435114,-500.0,0.00017545,2]
[346712340,1735229435124,-18235.21,0.00017545,2]
[346712341,1735229435133,-500.0,0.00017545,2]
[346712342,1735229435142,-432.63,0.00017545,2]
[346712343,1735229435152,-585.493618,0.00017546,2]
[346712344,1735229435161,-319.60914443,0.00017546,2]
[346712345,1735229435171,-500.0,0.00017546,2]
[346712346,1735229435180,-649.06,0.00017546,2]
[346712347,1735229435189,-500.0,0.00017546,2]
[346712348,1735229435199,-500.0,0.00017546,2]
[346712349,1735229435211,-500.0,0.00017546,2]
[346712350,1735229435222,-500.0,0.00017546,2]
[346712351,1735229435233,-3355.48,0.00017547,2]
[346712352,1735229435242,-309.30459727,0.00017547,2]
[346712353,1735229435252,-500.0,0.00017547,2]
[346712354,1735229435262,-500.0,0.00017547,2]
[346712355,1735229435271,-500.0,0.00017547,2]
[346712356,1735229435282,-10148.89039299,0.00017759,2]
[346712357,1735229435291,-174.88818615,0.0001778,2]
[346712358,1735229435301,-151.0,0.000178,2]
[346712359,1735229435310,-500.0,0.00017817,2]
[346712360,1735229435319,-500.0,0.00017817,2]
[346712361,1735229435329,-5687.39,0.00017817,2]
[346712362,1735229435339,-2099.57,0.00017817,2]
[346712363,1735229435348,-500.0,0.00017817,2]
[346712364,1735229435357,-1280.68,0.00017817,2]
[346712365,1735229435367,-1008.97,0.00017817,2]
[346712366,1735229435377,-759.06,0.00017817,2]
[346712367,1735229435387,-500.0,0.00017817,2]
[346712368,1735229435396,-500.0,0.00017818,2]
[346712369,1735229435406,-500.0,0.00017818,2]
[346712370,1735229435416,-500.0,0.00017818,2]
[346712371,1735229435425,-500.0,0.00017818,2]
[346712372,1735229435435,-500.0,0.00017818,2]
[346712373,1735229435445,-500.0,0.00017818,2]
[346712374,1735229435455,-500.0,0.00017818,2]
[346712375,1735229435464,-500.0,0.00017818,2]
[346712376,1735229435474,-1040.55,0.00017818,2]
[346712377,1735229435482,-1100.36,0.00017818,2]
[346712378,1735229435491,-1279.75,0.00017818,2]
[346712379,1735229435502,-331.96,0.00017818,2]
[346712380,1735229435512,-448.70245167,0.00017818,2]
[346712381,1735229435522,-500.0,0.00017818,2]
[346712382,1735229435531,-652.16,0.00017818,2]
[346712383,1735229435541,-1785.19,0.00017818,2]
[346712384,1735229435550,-500.0,0.00017818,2]
[346712385,1735229435560,-655.75,0.00017818,2]
[346712386,1735229435570,-500.0,0.00017818,2]
[346712387,1735229435579,-510.11,0.00017818,2]
[346712388,1735229435589,-934.2,0.00017818,2]
[346712389,1735229435599,-719.86,0.00017818,2]
[346712390,1735229435608,-500.0,0.00017818,2]
[346712391,1735229435617,-635.33,0.00017818,2]
[346712392,1735229435627,-500.0,0.00017818,2]
[346712393,1735229435636,-500.0,0.00017819,2]
[346712394,1735229435645,-348.94,0.00017819,2]
[346712395,1735229435655,-500.0,0.00017819,2]
[346712396,1735229435665,-556.66,0.00017819,2]
[346712397,1735229435675,-500.0,0.00017819,2]
[346712398,1735229435684,-541.36,0.00017819,2]
[346712399,1735229435694,-500.0,0.00017819,2]
[346712400,1735229435715,-500.0,0.00017819,2]
[346712401,1735229435728,-568.59,0.00017819,2]
[346712402,1735229435738,-500.0,0.00017819,2]
[346712403,1735229435747,-500.0,0.00017819,2]
[346712404,1735229435755,-500.0,0.00017819,2]
[346712405,1735229435767,-500.0,0.00017819,2]
[346712406,1735229435777,-500.0,0.00017819,2]
[346712407,1735229435786,-588.46,0.00017819,2]
[346712408,1735229435796,-500.0,0.00017819,2]
[346712409,1735229435807,-500.0,0.00017819,2]
[346712410,1735229435817,-18235.21,0.00017819,2]
[346712411,1735229435826,-500.0,0.00017819,2]
[346712412,1735229435836,-500.0,0.0001782,2]
[346712413,1735229435846,-649.06,0.0001782,2]
[346712414,1735229435855,-500.0,0.0001782,2]
[346712415,1735229435865,-500.0,0.0001782,2]
[346712416,1735229435875,-500.0,0.0001782,2]
[346712417,1735229435884,-500.0,0.0001782,2]
[346712418,1735229435894,-500.0,0.0001782,2]
[346712419,1735229435904,-544.46,0.0001782,2]
[346712420,1735229435914,-562.29908351,0.0001782,2]
[346712421,1735229435924,-4316.53,0.0001782,2]
[346712422,1735229435933,-3355.48,0.00017821,2]
[346712423,1735229435942,-451.36,0.00017821,2]
[346712424,1735229435952,-3220.13727721,0.0001789,2]
[346712425,1735229435965,-160.35092743,0.0001789,2]
[346712426,1735229435974,-160.35092743,0.0001789,2]
[346712427,1735229435983,-160.35092743,0.0001789,2]
[346712428,1735229435992,-160.35092743,0.0001789,2]
[346712429,1735229436001,-160.35092743,0.0001789,2]
[346712430,1735229436011,-160.35092743,0.0001789,2]
[346712431,1735229436021,-160.35092743,0.0001789,2]
[346712432,1735229436031,-160.35092743,0.0001789,2]
[346712433,1735229436040,-160.35092743,0.0001789,2]
[346712434,1735229436050,-160.35092743,0.0001789,2]
[346712435,1735229436059,-160.35092743,0.0001789,2]
[346712436,1735229436069,-160.35092743,0.0001789,2]
[346712437,1735229436078,-160.35092743,0.0001789,2]
[346712438,1735229436088,-160.35092743,0.0001789,2]
[346712439,1735229436097,-160.35092743,0.0001789,2]
[346712440,1735229436107,-160.35092743,0.0001789,2]
[346712441,1735229436117,-160.35092743,0.0001789,2]
[346712442,1735229436126,-160.35092743,0.0001789,2]
[346712443,1735229436136,-160.35092743,0.0001789,2]
[346712444,1735229436146,-160.35,0.0001789,2]
[346712445,1735229436156,-163.43004764,0.0001789,2]
[346712446,1735229436167,-163.43004764,0.0001789,2]
[346712447,1735229436177,-163.43004764,0.0001789,2]
[346712448,1735229436186,-163.43004764,0.0001789,2]
[346712449,1735229436196,-163.43004764,0.0001789,2]
[346712450,1735229436209,-163.43004764,0.0001789,2]
[346712451,1735229436220,-163.43004764,0.0001789,2]
[346712452,1735229436230,-163.43004764,0.0001789,2]
[346712453,1735229436240,-163.43004764,0.0001789,2]
[346712454,1735229436325,-163.43004764,0.0001789,2]
[346712455,1735229436335,-163.43,0.0001789,2]
[346712456,1735229436344,-151.0,0.000179,2]
[346712457,1735229436355,-151.0,0.000179,2]
[346712458,1735229436365,-240.52639114,0.000179,2]
[346712459,1735229436374,-240.52639114,0.000179,2]
[346712460,1735229436384,-240.52639114,0.000179,2]
[346712461,1735229436392,-240.52639114,0.000179,2]
[346712462,1735229436402,-240.52639114,0.000179,2]
[346712463,1735229436412,-240.52639114,0.000179,2]
[346712464,1735229436422,-240.52639114,0.000179,2]
[346712465,1735229436431,-240.52639114,0.000179,2]
[346712466,1735229436441,-240.52639114,0.000179,2]
[346712467,1735229436451,-240.52639114,0.000179,2]
[346712468,1735229436464,-240.52639114,0.000179,2]
[346712469,1735229436473,-240.52639114,0.000179,2]
[346712470,1735229436483,-240.52639114,0.000179,2]
[346712471,1735229436493,-240.52639114,0.000179,2]
[346712472,1735229436503,-240.52639114,0.000179,2]
[346712473,1735229436513,-240.52639114,0.000179,2]
[346712474,1735229436522,-240.52639114,0.000179,2]
[346712475,1735229436532,-240.52639114,0.000179,2]
[346712476,1735229436541,-240.52639114,0.000179,2]
[346712477,1735229436551,-240.52,0.000179,2]
[346712478,1735229436560,-158.62328153,0.000179,2]
[346712479,1735229436570,-158.62328153,0.000179,2]
[346712480,1735229436579,-158.62328153,0.000179,2]
[346712481,1735229436589,-158.62328153,0.000179,2]
[346712482,1735229436598,-158.62328153,0.000179,2]
[346712483,1735229436607,-158.62328153,0.000179,2]
[346712484,1735229436616,-158.62328153,0.000179,2]
[346712485,1735229436625,-158.62328153,0.000179,2]
[346712486,1735229436634,-158.62328153,0.000179,2]
[346712487,1735229436643,-158.62328153,0.000179,2]
[346712488,1735229436652,-158.62328153,0.000179,2]
[346712489,1735229436662,-158.62328153,0.000179,2]
[346712490,1735229436671,-158.62328153,0.000179,2]
[346712491,1735229436682,-158.62328153,0.000179,2]
[346712492,1735229436692,-158.62328153,0.000179,2]
[346712493,1735229436702,-158.62328153,0.000179,2]
[346712494,1735229436717,-158.62,0.000179,2]
[346712495,1735229436737,-500.0,0.00017973,2]
[346712496,1735229436750,-500.0,0.00017989,2]
[346712497,1735229436760,-500.0,0.00017989,2]
[346712498,1735229436769,-500.0,0.00017989,2]
[346712499,1735229436779,-501.89887644,0.00017989,2]
[346712500,1735229436789,-502.65558615,0.00017989,2]
[346712501,1735229436798,-500.0,0.00017989,2]
[346712502,1735229436810,-500.0,0.00017989,2]
[346712503,1735229436819,-500.0,0.00017989,2]
[346712504,1735229436828,-500.0,0.00017989,2]
[346712505,1735229436837,-500.0,0.00017989,2]
[346712506,1735229436847,-502.20093038,0.00017989,2]
[346712507,1735229436856,-500.0,0.00017989,2]
[346712508,1735229436866,-530.06576934,0.00017989,2]
[346712509,1735229436874,-500.0,0.00017989,2]
[346712510,1735229436884,-500.0,0.00017989,2]
[346712511,1735229436894,-500.0,0.00017989,2]
[346712512,1735229436904,-500.0,0.00017989,2]
[346712513,1735229436913,-500.0,0.00017989,2]
[346712514,1735229436923,-500.0,0.00017989,2]
[346712515,1735229436933,-500.0,0.00017989,2]
[346712516,1735229436942,-500.0,0.00017989,2]
[346712517,1735229436951,-500.0,0.00017989,2]
[346712518,1735229436967,-501.32744387,0.00017989,2]
[346712519,1735229436976,-500.0,0.00017989,2]
[346712520,1735229436985,-500.0,0.00017989,2]
[346712521,1735229436996,-503.62908198,0.00017989,2]
[346712522,1735229437005,-502.93897804,0.00017989,2]
[346712523,1735229437015,-503.66761403,0.00017989,2]
[346712524,1735229437024,-503.51127022,0.00017989,2]
[346712525,1735229437033,-1584.06389133,0.0001799,2]
[346712526,1735229437043,-44449.18705164,0.0001799,2]
[346712527,1735229437052,-445322.91440424,0.0001799,10]
[346712586,1735229443048,-500.0,0.00016996,2]
[346712587,1735229443058,-500.0,0.0001727,2]
[346712588,1735229443067,-655.17,0.00017543,2]
[346712589,1735229443078,-500.0,0.00017544,2]
[346712590,1735229443089,-655.17,0.00017817,2]
[346712591,1735229443098,-500.0,0.00017818,2]
[346712592,1735229443108,-500.0,0.00017973,2]
[346712593,1735229443118,-2441.34270744,0.0001799,10]
[346712594,1735229443130,-9806.1896,0.0001799,10]
[346712614,1735229446354,-500.0,0.00016999,2]
[346712616,1735229446364,-500.0,0.00017273,2]
[346712618,1735229446374,-500.0,0.00017547,2]
[346712620,1735229446384,-143.56877997,0.00017821,2]